Cogmind - Beta 15 @@@ ROGUE MODE // 2025.05.09 @ 15:14:39 Player: naththebg Result: Destroyed by Y-54 Guardian with Gatling Laser Performance ------------- Evolutions (0) 0 Regions Visited (4) 800 Robots Destroyed (31) 155 Value Destroyed (840) 840 Prototype IDs (2) 40 Alien Tech Used (0) 0 Bonus (0) 0 TOTAL SCORE: 1835 Bonus ------- None Cogmind --------- Core Integrity 0/250 Matter 7/300 Energy 160/160 System Corruption 0% Temperature Cool (12) Movement Treading (160) Location -7/Recycling Parts ------- > --- POWER (1) -------- Light Nuclear Core > --- PROPULSION (2) --- Spiked Treads Spiked Treads > --- UTILITY (2) ------ (None) > --- WEAPON (2) ------- Subdweller Shrapnel Launcher > --- INVENTORY (5) ---- Wheel Humpback Barrage Gun Scrap Shield Fragment (49) Peak State ------------ > --- POWER ------------ Light Nuclear Core > --- PROPULSION ------- Spiked Treads Spiked Treads > --- UTILITY ---------- Humpback > --- WEAPON ----------- Barrage Gun Barrage Gun > --- INVENTORY -------- Subdweller Power Source Aluminum Leg Wheel Subdweller Monowheel Subdweller Monowheel Heat Sink Heat Sink Disposable Heat Sink Disposable Heat Sink Humpback Subdweller Optics Subdweller Optics Subdweller Optics Makeshift Light Armor Plating Subdweller Laser Subdweller Beam Cannon Subdweller Beam Cannon Subdweller Machine Gun Battle Cannon Subdweller Shrapnel Launcher Scrap Shield Fragment Scrap Shield Fragment [Rating: 19] Favorites ----------- Power Light Ion Engine Engine Light Ion Engine Power Core Light Nuclear Core Propulsion Aluminum Leg Treads Spiked Treads Leg Aluminum Leg Wheel Subdweller Monowheel Utility Heat Sink Device Heat Sink Storage Medium Storage Unit Weapon Barrage Gun Energy Gun Medium Laser Ballistic Gun Barrage Gun Ballistic Cannon Battle Cannon Launcher Subdweller Shrapnel Launcher Special Weapon Enhanced Flamer Build | -11 -10 -10 -10 -7 ------- Run | Yrd Mat Min Sub Rec Slots Evolved . | . . . . . Power . | . . . . . Propulsion . | . . . . . Utility . | . . . . . Weapon . | . . . . . Parts Attached 33 | 6 10 . 15 2 Power 6 | 1 2 . 3 . Engine 5 | 1 1 . 3 . Core 1 | . 1 . . . Reactor . | . . . . . Propulsion 11 | 2 3 . 4 2 Treads 2 | . . . . 2 Leg 5 | 2 3 . . . Wheel 4 | . . . 4 . Hover . | . . . . . Flight . | . . . . . Utility 5 | 1 3 . 1 . Device 2 | . 2 . . . Storage 3 | 1 1 . 1 . Processor . | . . . . . Hackware . | . . . . . Protection . | . . . . . Artifact . | . . . . . Weapon 11 | 2 2 . 7 . Energy Gun 4 | 1 2 . 1 . Energy Cannon . | . . . . . Ballistic Gun 4 | 1 . . 3 . Ballistic Cannon 1 | . . . 1 . Launcher 1 | . . . 1 . Special Weapon 1 | . . . 1 . Impact Weapon . | . . . . . Slashing Weapon . | . . . . . Piercing Weapon . | . . . . . Special Melee Weapon . | . . . . . Unidentified Prototypes . | . . . . . Parts Lost 13 | . 3 . 9 1 Power 2 | . . . 2 . Propulsion 5 | . 1 . 4 . Utility 1 | . 1 . . . Weapon 5 | . 1 . 3 1 Highest Loss Streak 4 | . 2 . 4 1 To Critical Strikes . | . . . . . Average Backups 9 | 2 7 7 9 19 Power 1 | . 1 2 . . Propulsion 2 | 2 3 3 2 4 Utility 2 | . 2 2 2 8 Weapon 2 | . . . 3 5 Tool/Special . | . . . . . Unused Backups 16 | . 3 . 2 11 Power . | . . . . . Propulsion 4 | . 2 . . 2 Utility 8 | . . . 1 7 Weapon 3 | . 1 . . 2 Tool/Special 1 | . . . 1 . Average Slot Usage (%) 94 | . 98 100 93 77 Engine 12 | . 13 14 12 5 Core 1 | . . . 1 8 Leg 13 | . 27 28 8 . Wheel 11 | . . . 16 5 Device 11 | . 13 14 11 . Storage 13 | . 14 14 14 13 Energy Gun 9 | . 27 28 2 . Ballistic Gun 13 | . . . 18 22 Ballistic Cannon 2 | . . . 4 . Launcher 2 | . . . 2 4 Peak Build Rating 19 | 6 10 8 16 19 Average Rating 11 | 4 7 8 12 17 On Entrance 7 | . 6 8 8 16 Naked Turns . | . . . . . Heaviest Build 216 | 11 19 19 216 216 Greatest Support 40 | 20 20 20 40 40 Greatest Overweight (x) 10 | . . . 10 10 Average Overweight (x) . | . . . 1 6 Largest Inventory Capacity 35 | 8 10 10 35 35 Average Capacity 13 | 7 8 10 14 32 Most Carried 26 | 6 9 7 26 26 Average Carried 10 | 2 7 7 10 22 Final Capacity 35 | 8 10 10 35 5 Final Carried 26 | 6 7 7 26 5 Class Distribution -------------------- 80% | Mutant 16% | Hauler-Mutant Dominant Class ---------------- Mutant | -10/Materials Mutant | -10/Mines Mutant | -10/Subcaves Hauler-Mutant | -7/Recycling Resources | -11 -10 -10 -10 -7 ----------- Run | Yrd Mat Min Sub Rec Matter Collected 735 | 260 105 . 370 . Remotely . | . . . . . Salvage Created 1105 | . 668 102 317 18 Parts 63 | . 39 6 18 . Haulers Intercepted 1 | . 1 . . . Recyclers Shooed 1 | . 1 . . . Parts Field Recycled . | . . . . . Retrieved Matter . | . . . . . Parts Self-Destructed 18 | . . . 18 . Prevented . | . . . . . Kills | -11 -10 -10 -10 -7 ------- Run | Yrd Mat Min Sub Rec Combat Hostiles Destroyed 24 | . 12 . 11 1 Guns 19 | . 11 . 8 . Cannons 2 | . . . 2 . AOE 3 | . 1 . 1 1 Classes Destroyed 9 | . 5 1 3 . Worker 1 | . 1 . . . Builder 1 | . . 1 . . Hauler 1 | . 1 . . . Recycler 3 | . 2 1 . . Turret 1 | . . . 1 . Swarmer 6 | . 3 . 3 . Grunt 9 | . 9 . . . Sentry 2 | . . . 1 1 Subdweller 7 | . . . 7 . Best Kill Streak 6 | . 6 2 3 1 Combat Bots Only 4 | . 4 . 3 1 Max Kills in Single Turn 4 | . 4 1 2 1 Gunslinging 1 | . . . 1 . Exploded 1 | . 1 . 1 1 Melee . | . . . . . Uniques/NPCs Destroyed . | . . . . . Combat | -11 -10 -10 -10 -7 -------- Run | Yrd Mat Min Sub Rec Hostile Shots Fired 197 | . 53 1 68 75 Missed 65 | . 13 1 16 35 Hits 132 | . 40 . 52 40 Projectile 132 | . 40 . 52 40 Critical Strikes 1 | . . . 1 . Damage Taken 1727 | . 399 . 1037 291 Core 251 | . 57 . 178 16 Absorbed by Shields . | . . . . . Core Remaining (%) 100 | 100 . . . . Volleys Fired 102 | . 40 2 52 8 Largest 2 | . 2 2 2 1 Hottest 140 | . 115 115 140 40 Shots Fired 185 | . 76 4 97 8 Gun 162 | . 76 4 80 2 Cannon 13 | . . . 13 . Launcher 9 | . . . 3 6 Special 1 | . . . 1 . Kinetic 82 | . . . 74 8 Thermal 81 | . 54 4 23 . Explosive . | . . . . . Electromagnetic 22 | . 22 . . . Robot Hit Streak 19 | . 7 7 19 4 Robot Miss Streak 6 | . 6 . 2 1 Penetration Max . | . . . . . Secondary Targets 6 | . 4 . 2 . Max Gunslinging Chain 1 | . 1 . 1 . Shots Hit Robots 116 | . 42 4 65 5 Core Hits 52 | . 24 3 20 5 Critical Kills . | . . . . . Critical Parts Destroyed . | . . . . . Critical Strikes 6 | . 2 . 4 . Burn 3 | . 1 . 2 . Destroy 2 | . . . 2 . Corrupt 1 | . 1 . . . Melee Attacks . | . . . . . Impact . | . . . . . Slashing . | . . . . . Piercing . | . . . . . Sneak Attacks . | . . . . . Combat Hostiles . | . . . . . Follow-up Attacks . | . . . . . Damage Inflicted 2462 | . 756 57 1291 358 Guns 1531 | . 562 57 885 27 Cannons 216 | . . . 216 . Explosions 703 | . 194 . 178 331 Melee . | . . . . . Ramming . | . . . . . Kinetic 1340 | . . . 982 358 Thermal 939 | . 573 57 309 . Explosive . | . . . . . Electromagnetic 183 | . 183 . . . Impact . | . . . . . Slashing . | . . . . . Piercing . | . . . . . Highest Corruption . | . . . . . Average Corruption . | . . . . . Corruption Purged . | . . . . . Corruption Blocked . | . . . . . Overload Shots . | . . . . . Overflow Damage 68 | . 40 . 28 . Projectiles . | . . . . . Explosions 68 | . 40 . 28 . Melee . | . . . . . Knockbacks 2 | . . . 2 . Impact . | . . . . . Kinetic 2 | . . . 2 . Secondary . | . . . . . Self-Inflicted Damage . | . . . . . Shots . | . . . . . Rammed . | . . . . . Targets Rammed . | . . . . . Kicked . | . . . . . Crushed . | . . . . . Highest Temperature 306 | . 306 24 . 50 Average Temperature 66 | . 77 16 . 24 Received Heat Transfer 423 | . 123 . 216 84 Siege Activations . | . . . . . Martial Activations . | . . . . . Shielding Activations . | . . . . . Robots Disrupted . | . . . . . Combat Hostiles . | . . . . . Robots Corrupted . | . . . . . Combat Hostiles . | . . . . . Parts Fried . | . . . . . Impact Corruptions . | . . . . . Robots Melted . | . . . . . Combat Hostiles . | . . . . . Parts Melted 4 | . 1 2 1 . Heat Transferred 2255 | . 1297 148 810 . Parts Sabotaged . | . . . . . Parts Stolen . | . . . . . Parts Stripped . | . . . . . Power Chain Reactions 1 | . 1 . . . Alert | -11 -10 -10 -10 -7 ------- Run | Yrd Mat Min Sub Rec Maximum Alert Level 1 | . 1 . . . Low Security (%) 91 | 100 85 100 . 100 Level 1 8 | . 14 . . . Level 2 . | . . . . . Level 3 . | . . . . . Level 4 . | . . . . . Level 5 . | . . . . . High Security . | . . . . . Max Security . | . . . . . Peak Influence 227 | . 227 79 . 52 Initial 79 | . . 79 . 7 Average 48 | . 71 23 . 12 Influence Increases 712 | . 449 10 185 68 Destroy 0b10 Robot/C 360 | . 240 . 100 20 Destroy 0b10 Robot/NC 30 | . 20 10 . . Destroy Leader 72 | . 62 . 10 . Successful Hack 40 | . 24 . . 16 Destroy Structure 45 | . 13 . . 32 Lose Combat Pursuer 165 | . 90 . 75 . Influence Decreases 680 | . 244 215 168 53 Entered New Map 136 | . . 126 . 10 Time Decay 465 | . 214 69 158 24 Lost Part 50 | . 30 . 10 10 Lost Ally 20 | . . 20 . . Purge Threat 9 | . . . . 9 Squads Dispatched 3 | . 3 . . . Investigation . | . . . . . Extermination . | . . . . . Reinforcement 3 | . 3 . . . Assault . | . . . . . Garrison . | . . . . . Intercept . | . . . . . Searches Triggered . | . . . . . Construction Impeded . | . . . . . Haulers Reinforced . | . . . . . Active Scanning Responses . | . . . . . Cargo Convoy Interrupts . | . . . . . Stealth | -11 -10 -10 -10 -7 --------- Run | Yrd Mat Min Sub Rec Distress Signals 3 | . 3 . . . Communications Jammed . | . . . . . Distress Signals . | . . . . . Times Spotted 48 | . 20 9 17 2 Peak Tracking Total 19 | . 5 19 3 2 Tactical Retreats 8 | . 2 1 5 . Traps | -11 -10 -10 -10 -7 ------- Run | Yrd Mat Min Sub Rec Traps Triggered 1 | . 1 . . . Indirectly . | . . . . . Trap Hack Attempts . | . . . . . Triggered . | . . . . . Disarmed . | . . . . . Reprogrammed . | . . . . . Reused . | . . . . . Traps Extracted . | . . . . . Installed . | . . . . . Triggered . | . . . . . Machines | -11 -10 -10 -10 -7 ---------- Run | Yrd Mat Min Sub Rec Machines Disabled . | . . . . . Max in Single Turn . | . . . . . Machines Repaired . | . . . . . Machines Dismantled . | . . . . . Machines Sabotaged . | . . . . . Overloaded Fab Kills . | . . . . . Hacking | -11 -10 -10 -10 -7 --------- Run | Yrd Mat Min Sub Rec Machines Accessed 6 | . 3 . 1 2 Terminals 4 | . 2 . . 2 Fabricators . | . . . . . Repair Stations . | . . . . . Recycling Units 1 | . 1 . . . Scanalyzers . | . . . . . Garrison Access . | . . . . . Total Hacks 19 | . 6 . 5 8 Successful 13 | . 4 . 5 4 Failed 6 | . 2 . . 4 Catastrophic . | . . . . . Database Lockouts . | . . . . . Manual 8 | . 4 . . 4 Terminals 13 | . 5 . . 8 Fabricators . | . . . . . Repair Stations . | . . . . . Recycling Units 1 | . 1 . . . Scanalyzers . | . . . . . Garrison Access . | . . . . . Terminal Hacks 8 | . 1 . 5 2 Record 5 | . . . 5 . Prototype ID Bank 1 | . . . . 1 Branch Access Points 1 | . 1 . . . Unreport Threat 1 | . . . . 1 Fabricator Hacks . | . . . . . Repair Station Hacks . | . . . . . Recycling Unit Hacks 1 | . 1 . . . Retrieve Components 1 | . 1 . . . Scanalyzer . | . . . . . Garrison Access Hacks . | . . . . . Unauthorized Hacks 4 | . 2 . . 2 Terminals 4 | . 2 . . 2 Botnet 3 | . 2 . . 1 Disrupt 1 | . . . . 1 Fabricators . | . . . . . Repair Stations . | . . . . . Recycling Units . | . . . . . Scanalyzers . | . . . . . Garrison Access . | . . . . . Data Cores Recovered . | . . . . . Used . | . . . . . Hacking Detections 5 | . 3 . . 2 Full Trace Events 1 | . . . . 1 Feedback Events . | . . . . . Feedback Blocked . | . . . . . Robot Schematics Acquired . | . . . . . Robots Built . | . . . . . Authchips . | . . . . . Time . | . . . . . Total Robot Build Rating . | . . . . . Part Schematics Acquired . | . . . . . Parts Built . | . . . . . Authchips . | . . . . . Time . | . . . . . Total Part Build Rating . | . . . . . Parts Repaired . | . . . . . Time . | . . . . . Parts Recycled . | . . . . . Recycled Matter . | . . . . . Retrieved Matter . | . . . . . Retrieved Components 1 | . 1 . . . Parts Scanalyzed . | . . . . . Part Schematics Acquired . | . . . . . Parts Damaged . | . . . . . Bothacking | -11 -10 -10 -10 -7 ------------ Run | Yrd Mat Min Sub Rec Used RIF Installer . | . . . . . Robots Hacked . | . . . . . Non-combat . | . . . . . Combat . | . . . . . Robot Hacks Applied . | . . . . . Relay Couplers Released . | . . . . . Fabnet Peak Effective % . | . . . . . Robots Rewired . | . . . . . Allies Hacked . | . . . . . Hacks Repelled . | . . . . . Allies | -11 -10 -10 -10 -7 -------- Run | Yrd Mat Min Sub Rec Total Allies 1 | . . 1 . . Largest Group 1 | . . 1 . . Highest-Rated Group 31 | . . 31 . . Highest-Rated Ally 31 | . . 31 . . Total Orders . | . . . . . Ally Attacks 3 | . . 3 . . Total Damage 40 | . . 40 . . Kills 2 | . . 2 . . Allies Corrupted . | . . . . . Allies Melted . | . . . . . Intel | -11 -10 -10 -10 -7 ------- Run | Yrd Mat Min Sub Rec Active Infowar (turns) . | . . . . . Robot Analysis Total . | . . . . . Derelict Logs Recovered 1 | . . 1 . . Drone Launches . | . . . . . Drone Recoveries . | . . . . . Exploration | -11 -10 -10 -10 -7 ------------- Run | Yrd Mat Min Sub Rec Turns Passed 2860 | 68 599 215 1844 134 Spaces Moved 1798 | 48 346 121 1247 36 Core 11 | 5 . . 6 . Treads 15 | . . . . 15 Legs 773 | 43 346 121 263 . Wheels 999 | . . . 978 21 Hover . | . . . . . Flight . | . . . . . Fastest Speed 50 | 50 120 120 95 160 Average Speed 128 | 112 120 120 128 300 Slowest Speed 660 | 120 120 120 250 660 Overloaded Moves . | . . . . . Propulsion Burnouts . | . . . . . Robots Hopped . | . . . . . Potential Cave-ins . | . . . . . Cave-ins Triggered . | . . . . . Exploration Rate (%) 34 | 4 66 27 66 7 Regions Visited 4 Branch Regions 3 Pre-discovered Areas 1 | . . 1 . . Known Exits Taken 1 | . 1 . . . Unknown Exits Taken 3 | 1 . 1 1 . Scrap Searched 6 | . . 1 5 . Spaces Dug . | . . . . . Terrain Destroyed 107 | . 9 . 37 61 Melee . | . . . . . Projectile . | . . . . . AOE 107 | . 9 . 37 61 Terrain Rammed . | . . . . . Walls Destroyed . | . . . . . Machines Disabled . | . . . . . Actions | -11 -10 -10 -10 -7 --------- Run | Yrd Mat Min Sub Rec Total 2156 | 59 454 187 1402 54 Wait 150 | . 46 65 35 4 Move 1794 | 47 345 120 1246 36 Hop . | . . . . . Pick Up 44 | 6 5 . 33 . Fast Attach 13 | 6 2 . 5 . Attach 7 | . 2 . 4 1 Detach . | . . . . . Swap 22 | . 7 . 12 3 Drop 24 | . 7 . 15 2 Fire 102 | . 40 2 52 8 Melee . | . . . . . Ram . | . . . . . Kick . | . . . . . Crush . | . . . . . Escape Stasis . | . . . . . Rewire . | . . . . . Trap . | . . . . . Miscellaneous . | . . . . . Route ------- -11/Scrapyard -10/Materials -10/Mines -10/Subcaves (discovered 2 exits: [*Mat] / *Rec) -7/Recycling History --------- Turn | Location | Event 7 | -11/Scrapyard | Discovered new exit (range 15) 69 | -11/Scrapyard | Entered Materials 302 | -10/Materials | Build established: Mutant 451 | -10/Materials | Discovered new exit (range 10) 614 | -10/Materials | Identified exit to Mines 668 | -10/Materials | Entered Mines 669 | -10/Mines | Assembled infested the area 671 | -10/Mines | Received a Mining Laser from a helpful Derelict 856 | -10/Mines | Discovered new exit (range 5) 883 | -10/Mines | Entered Subcaves 955 | -10/Subcaves | Lost 3 parts (1p2w) 1110 | -10/Subcaves | A swath of the cavern ceiling suddenly collapsed 1348 | -10/Subcaves | Shifting Twisted Machinery released Sub. Monowheel 1353 | -10/Subcaves | Shifting Twisted Machinery released Enh. Flamer 1459 | -10/Subcaves | Core integrity fell below 50% 1489 | -10/Subcaves | Lost 4 parts (1p2n1w) 1674 | -10/Subcaves | Shifting Twisted Machinery released Piercing Trap 1850 | -10/Subcaves | Discovered new exit (range 8) 1873 | -10/Subcaves | Discovered new exit (range 15) 1908 | -10/Subcaves | Visited Clippyterm 1911 | -10/Subcaves | Learned Research machine intel 1911 | -10/Subcaves | Learned Factory stockpile data 1947 | -10/Subcaves | Shifting Twisted Machinery released Sub. Shrapnel Launcher 2149 | -10/Subcaves | A swath of the cavern ceiling suddenly collapsed 2597 | -10/Subcaves | Core integrity fell below 20% 2687 | -10/Subcaves | Build established: Hauler-Mutant 2727 | -10/Subcaves | Entered Recycling 2861 | -7/Recycling | Destroyed by Y-54 Guardian with Gatling Laser Last Messages --------------- Testing... Disruption routine running. 02744_ Connecting with Terminal... >>Trojan(Botnet) Trojan loaded successfully. Testing... Terminal linked with 0 systems. Awaiting botnet instructions. 02755_ Connecting with Terminal... >>Alert(Purge) Purged threat record, alert level lowered. >>Prototypes Downloading prototype IDs... Exp. Utility Shielding Antimatter Cannon 02772_ Dropped Humpback. 02827_ Y-54 Guardian springs to life. 02835_ Y-54 Guardian destroyed. 02850_ Dropped Humpback. 02857_ Barrage Gun destroyed. Map ----- +----------------------------------------------------+ | ?????????????????????????????????????????????????? | | ?????????????????????????????????????????????????? | | ?????????????????????????????????????????????????? | | ?????????????????????????????????????????????????? | | ?????????????????????????????????????????????????? | | ?????????????????????????????????????????????????? | | ?????????????????????????????????????????????????? | | ?????????????????????????????????????????????????? | | ?????????????????????????????????????????????????? | | ?????????????????????????????????????????????????? | | ?????????????????????????????????????????????????? | | ?????????????????????????????????????????????????? | | ?????????????????????????????????????????????????? | | ?????????????????????????????????????????????????? | | ?????????????????????????????????????????????????? | | ?????????????????????????????????????????????????? | | ?????????????????????????????????????????????????? | | ?????????????????????????????????????????????????? | | ?????????????????????????????????????????????????? | | ??????????????????????###?#####??????????????????? | | ?????????????????######T###*!=#??????????????????? | | ?????????????????# #[!!#??????????????????? | | ?????????????????# """ #![]#??????????????????? | | ?????????????????# """ #!&]#??????????????????? | | ?????????????????# """ #!=!###????????????????? | | ?????????????????# @/]!!!!#????????????????? | | ?????????????????# "" # = !#????????????????? | | ?????????????????# T" # !#????????????????? | | ?????????????????# "" ###????????????????? | | ?????????????????# ?????????????????? | | ?????????????????####; ????????????????? | | ????????????????????# #???????????????? | | ????????????????????# "##???????????????? | | ????????????????????# ????????????????? | | ????????????????????# "#???????????????? | | ????????????????????## Y #???????????????? | | ?????????????????????? ##???????????????? | | ?????????????????????? #????????????????? | | ??????????????????????? ##?????????????????? | | ??????????????????????? #??????????????????? | | ???????????????????????#######???????????????????? | | ?????????????????????????????????????????????????? | | ?????????????????????????????????????????????????? | | ?????????????????????????????????????????????????? | | ?????????????????????????????????????????????????? | | ?????????????????????????????????????????????????? | | ?????????????????????????????????????????????????? | | ?????????????????????????????????????????????????? | | ?????????????????????????????????????????????????? | | ?????????????????????????????????????????????????? | +----------------------------------------------------+ Best States ------------- Heat Dissipation 35 Energy Generation 15 Energy Capacity 200 Matter Stores 300 Matter Capacity 300 Sight Range 16 Terrain Scan Density 10 Evasion (%) 55 Recoil Reduction 2 Item Schematics ----------------- None Robot Schematics ------------------ None Fabricated ------------ Nothing Repaired ---------- Nothing Alien Tech Used ----------------- None Achievements -------------- None Challenges ------------ None Game ------ Seed SingularityShrapnelAxe Manual? 0 Play Time 00:25:23 Cumulative 231.6 hours Start 2025.05.09 @ 14:28:43 End 2025.05.09 @ 15:14:39 Sessions 1 Manual Loads 0 Difficulty Rogue Special Mode None Game No. 116 Rogue 116 Adventurer 0 Explorer 0 Win Type - Total 4 Types 4/0/0/0/0/0/0/0/0/0 Lore% 71 Gallery% 73 Achievement% 62 Wizard Run 0 Options --------- Layout 1 ASCII 0 Keyboard 0 Movement Mouse Keybinds 0 Fullscreen 1 Font 24/Smallcaps Map View 50x35 Zoom Use 0% Tactical HUD 1 Map Filters NONE Filters NONE Steam 1 RUN: 14271cf9-3a9d-4bc9-9826-81a01a6249f6